[Event "48th Ciutat de Badalona Open 2024"]
[Site "Badalona"]
[Date "2024.08.07"]
[Round "6.8"]
[White "Deepak Ambattu, Rithvik"]
[Black "Vivaan Vishal Shah"]
[Result "0-1"]
[ECO "B32"]
[WhiteElo "2079"]
[BlackElo "2186"]
[Annotator "RC"]
[PlyCount "62"]
[EventDate "2024.07.29"]
[EventType "swiss"]
[EventCountry "ESP"]
[SourceTitle "playchess.com"]
[Source "ChessBase"]
[SourceQuality "1"]
[TimeControl "5400+30"]

1. e4 {[%emt 0:00:04]} c5 {[%emt 0:02:48]} 2. Nf3 {[%emt 0:00:10]} Nc6 {[%emt 0:00:26]} 3. d4 {[%emt 0:01:30]} cxd4 {[%emt 0:00:07]} 4. Nxd4 {[%emt 0:00:05]} e5 {[%emt 0:00:20]} 5. Nb5 {[%emt 0:00:45]} d6 {[%emt 0:00:07]} 6. N1c3 {[%emt 0:03:12]} a6 {[%emt 0:00:59]} 7. Na3 {[%emt 0:00:05]} Be7 {[%emt 0:01:15]} 8. Nd5 {[%emt 0:09:59]} Nf6 {[%emt 0:00:33]} 9. Nxf6+ {[%emt 0:02:40]} Bxf6 {[%emt 0:00:06]} 10. Bc4 {[%emt 0:03:39]} O-O {[%emt 0:04:33]} 11. O-O {[%emt 0:03:38]} Ne7 {[%emt 0:04:01]} 12. c3 {[%emt 0:08:02]} b5 {[%emt 0:00:44]} 13. Bb3 {[%emt 0:05:15]} Bb7 {[%emt 0:00:08]} 14. Qe2 {[%emt 0:04:42]} Qc7 {[%emt 0:00:43]} 15. Nc2 {[%emt 0:13:29]} d5 {[%emt 0:03:13]} 16. exd5 {[%emt 0:04:01]} Nxd5 {[%emt 0:00:18]} 17. Qg4 {[%emt 0:07:31]} Rad8 {[%emt 0:10:27]} 18. Bg5 {[%emt 0:05:24]} Bxg5 {[%emt 0:00:52]} 19. Bxd5 {[%emt 0:04:04]} Rxd5 {[%emt 0:01:30]} 20. Qxg5 {[%emt 0:00:05]} f6 {[%emt 0:01:21]} 21. Qe3 {[%emt 0:03:43]} Rfd8 {[%emt 0:00:43]} 22. Rac1 {[%emt 0:07:18]} Rd3 {[%emt 0:05:46]} 23. Qe2 {[%emt 0:00:30]} Rd2 {[%emt 0:01:44]} 24. Qg4 {[%emt 0:01:51]} Qf7 {[%emt 0:00:33]} 25. Ne3 {[%emt 0:03:37]} h5 {[%emt 0:01:56]} 26. Qb4 {[%emt 0:02:35]} f5 {[%emt 0:03:47]} 27. c4 {[%emt 0:01:58]} R2d4 {[%emt 0:03:32]} 28. Qa5 {[%emt 0:00:17]} f4 {[%emt 0:05:31]} 29. cxb5 {[%emt 0:04:18]} fxe3 {[%emt 0:01:07]} 30. fxe3 {[%emt 0:00:14]} Qg6 {[%emt 0:00:13]} 31. g3 {[%emt 0:00:48]} Qe4 {[%emt 0:00:14]} 0-1

[Event "48th Ciutat de Badalona Open 2024"]
[Site "Badalona"]
[Date "2024.08.07"]
[Round "6.9"]
[White "Infiesta Aguila, Agusti"]
[Black "Lozano Ruiz, David"]
[Result "1-0"]
[ECO "A26"]
[WhiteElo "1836"]
[BlackElo "1894"]
[Annotator "NA RC"]
[PlyCount "47"]
[EventDate "2024.07.29"]
[EventType "swiss"]
[EventCountry "ESP"]
[SourceTitle "playchess.com"]
[Source "ChessBase"]
[SourceQuality "1"]
[TimeControl "5400+30"]

1. c4 {[%emt 0:00:05]} e5 {[%emt 0:00:03]} 2. g3 {[%emt 0:00:24]} g6 {[%emt 0:01:04]} 3. Bg2 {[%emt 0:00:25]} Bg7 {[%emt 0:00:02]} 4. Nc3 {[%emt 1:31:36]} Nf6 {[%emt 0:04:01]} 5. d3 {[%emt 0:00:00]} O-O {[%emt 0:00:06]} 6. Nf3 {[%emt 0:00:00]} d6 {[%emt 1:28:14]} 7. O-O {[%emt 0:01:30]} Nc6 {[%emt 0:00:00]} 8. Rb1 {[%emt 0:00:00]} a5 {[%emt 0:01:00]} 9. a3 {[%emt 0:00:00]} Bd7 {[%emt 0:00:30]} 10. b4 {[%emt 0:00:00]} axb4 {[%emt 0:00:00]} 11. axb4 {[%emt 0:00:00]} Qc8 {[%emt 0:01:00]} 12. Bg5 {[%emt 0:00:00]} Bh3 {[%emt 0:00:30]} 13. Bxf6 {[%emt 0:03:00]} Bxg2 {[%emt 0:00:30]} 14. Bxg7 {[%emt 0:00:30]} Bxf1 {[%emt 0:00:00]} 15. Bxf8 {[%emt 0:00:00]} Bh3 {[%emt 0:00:00]} 16. Bh6 {[%emt 0:00:00]} f6 {[%emt 0:01:30]} 17. Nd5 {[%emt 0:00:00]} Kf7 {[%emt 0:00:30]} 18. b5 {[%emt 0:02:00]} Nd8 {[%emt 0:00:00]} 19. Bd2 {[%emt 0:00:00]} c6 {[%emt 0:00:00]} 20. Nb6 {[%emt 0:01:00]} Qb8 {[%emt 0:00:00]} 21. Nxa8 {[%emt 0:00:00]} Qxa8 {[%emt 0:00:00]} 22. Qb3 {[%emt 0:00:00]} Qc8 {[%emt 0:00:00]} 23. bxc6 {[%emt 0:00:00]} bxc6 {[%emt 0:03:00]} 24. Qb8 {[%emt 0:02:00]} 1-0

[Event "48th Ciutat de Badalona Open 2024"]
[Site "Badalona"]
[Date "2024.08.07"]
[Round "6.10"]
[White "Alasfour, Zaid"]
[Black "Ramos Alvarez, Maximo"]
[Result "1-0"]
[ECO "C58"]
[WhiteElo "1587"]
[BlackElo "1877"]
[Annotator "NA RC"]
[PlyCount "55"]
[EventDate "2024.07.29"]
[EventType "swiss"]
[EventCountry "ESP"]
[SourceTitle "playchess.com"]
[Source "ChessBase"]
[SourceQuality "1"]
[TimeControl "5400+30"]

1. e4 {[%emt 0:00:03]} e5 {[%emt 0:01:35]} 2. Nf3 {[%emt 0:00:07]} Nc6 {[%emt 0:00:13]} 3. Bc4 {[%emt 0:00:06]} Nf6 {[%emt 0:00:20]} 4. Ng5 {[%emt 0:00:16]} d5 {[%emt 0:00:52]} 5. exd5 {[%emt 0:00:13]} Na5 {[%emt 0:00:10]} 6. Bb5+ {[%emt 0:00:04]} c6 {[%emt 0:00:26]} 7. dxc6 {[%emt 0:00:09]} bxc6 {[%emt 0:00:16]} 8. Bd3 {[%emt 0:00:17]} Ng4 {[%emt 0:00:57]} 9. Ne4 {[%emt 0:00:25]} f5 {[%emt 0:01:14]} 10. Be2 {[%emt 0:00:48]} h5 {[%emt 0:02:17]} 11. h3 {[%emt 0:02:42]} Nf6 {[%emt 0:05:33]} 12. Nxf6+ {[%emt 0:04:14]} Qxf6 {[%emt 0:00:12]} 13. Bxh5+ {[%emt 0:03:06]} g6 {[%emt 0:00:16]} 14. Be2 {[%emt 0:00:19]} Bc5 {[%emt 0:03:39]} 15. d3 {[%emt 0:09:58]} Be6 {[%emt 0:10:49]} 16. Qd2 {[%emt 0:07:49]} Nb7 {[%emt 0:03:40]} 17. Qg5 {[%emt 0:01:47]} Qf7 {[%emt 0:07:07]} 18. Nc3 {[%emt 0:03:15]} Be7 {[%emt 0:05:25]} 19. Qg3 {[%emt 1:04:22]} Bd6 {[%emt 0:02:06]} 20. Qh2 {[%emt 0:00:00]} Qf6 {[%emt 0:02:56]} 21. Bd2 {[%emt 0:00:00]} g5 {[%emt 0:05:57]} 22. O-O-O {[%emt 0:00:00]} a5 {[%emt 0:02:12]} 23. g4 {[%emt 0:00:00]} fxg4 {[%emt 0:10:43]} 24. Ne4 {[%emt 0:00:00]} Qd8 {[%emt 0:03:15]} 25. Bxg5 {[%emt 0:00:00]} Qb6 {[%emt 0:02:32]} 26. Nxd6+ {[%emt 0:00:00]} Nxd6 {[%emt 0:00:42]} 27. Qxe5 {[%emt 0:00:00]} Kd7 {[%emt 0:01:28]} 28. Bxg4 {[%emt 0:00:00]} 1-0

[Event "48th Ciutat de Badalona Open 2024"]
[Site "Badalona"]
[Date "2024.08.08"]
[Round "7.1"]
[White "Cruz, Filemon"]
[Black "Berdayes Ason, Dylan Isidro"]
[Result "1/2-1/2"]
[ECO "B14"]
[WhiteElo "2249"]
[BlackElo "2476"]
[Annotator "TA"]
[PlyCount "57"]
[EventDate "2024.07.29"]
[EventType "swiss"]
[EventCountry "ESP"]
[SourceTitle "playchess.com"]
[Source "ChessBase"]
[SourceQuality "1"]
[TimeControl "5400+30"]

{[%evp 16,57,-2,-8,-15,-13,-14,0,-2,-17,-31,-26,-20,-41,-25,-23,-8,-12,-7,-5,-6,-11,-12,-15,0,-11,0,0,0,0,0,0,0,0,0,0,0,0,0,0,0,-31,0,0]} 1. Nf3 {[%emt 0:00:12]} d5 {[%emt 0:00:14]} 2. d4 {[%emt 0:00:37]} Nf6 {[%emt 0:00:13]} 3. e3 {[%emt 0:00:19]} c5 {[%emt 0:00:17]} 4. c4 {[%emt 0:00:20]} cxd4 {[%emt 0:00:53]} 5. exd4 {[%emt 0:00:10]} g6 {[%emt 0:00:41]} 6. Nc3 {[%emt 0:00:27]} Bg7 {[%emt 0:00:07]} 7. Qb3 {[%emt 0:01:51]} dxc4 {[%emt 0:03:43]} 8. Bxc4 {[%emt 0:00:09]} O-O {[%emt 0:00:03]} 9. Ne5 {[%emt 0:03:19][%cal Re5f7]} e6 {[%emt 0:00:17]} 10. Be3 {[%emt 0:01:04]} Nc6 {[%emt 0:06:48]} 11. Nxc6 {[%emt 0:00:50]} bxc6 {[%emt 0:00:03]} 12. Be2 {[%emt 0:04:12] Repels Ng4} Nd5 {[%emt 0:02:56]} 13. Nxd5 {[%emt 0:00:19]} cxd5 {[%emt 0:00:47]} 14. O-O {[%emt 0:00:16][%cal Bh1f1,Bf1c1,Bc1c5][%mdl 32]} a5 {[%emt 0:04:52][%cal Ba7a5,Ba5a4][%mdl 32]} 15. Rfc1 {[%emt 0:04:40]} Ba6 {[%emt 0:00:17]} 16. Bxa6 {[%emt 0:00:16]} Rxa6 {[%emt 0:00:02]} 17. Rc5 {[%emt 0:00:24]} a4 {[%emt 0:02:42]} 18. Qb5 {[%emt 0:02:06]} Qb6 {[%emt 0:07:55]} 19. Rac1 {[%emt 0:00:40]} h5 {[%emt 0:00:39]} 20. g3 {[%emt 0:01:45]} Bf6 {[%emt 0:03:00]} 21. Qd3 {[%emt 0:09:34]} Ra7 {[%emt 0:05:25][%cal Ba6a7,Ba7b7,Bb7b6][%mdl 32]} 22. R1c2 {[%emt 0:04:50]} Rb7 {[%emt 0:01:28]} 23. h4 {[%emt 0:00:41]} Bg7 {[%emt 0:12:34]} 24. Kg2 {[%emt 0:01:18]} Ra8 {[%emt 0:00:46]} 25. Qd1 {[%emt 0:02:47]} Qa6 {[%emt 0:01:18]} 26. Qd2 {[%emt 0:01:50]} Bf8 {[%emt 0:02:12]} 27. Rc6 {[%emt 0:03:13]} Rb6 {[%emt 0:01:11]} 28. Rc7 {[%emt 0:05:24]} Rb7 {[%emt 0:03:36]} (28... Bd6 $5 29. R7c5 e5 $11 (29... Bxc5 30. dxc5 Rc6 31. Bd4 $14)) 29. R7c6 {[%emt 0:00:15] An uneventful encounter.   Weighted Error Value: White=0.04 (flawless) /Black=0.05 (flawless) .  Inaccurate:     	White=1     	Black=1      OK:         	White=8     	Black=8} 1/2-1/2

[Event "48th Ciutat de Badalona Open 2024"]
[Site "Badalona"]
[Date "2024.08.08"]
[Round "7.2"]
[White "Vitier Vazquez, Cristian"]
[Black "Nagare Kaivalya Sandip"]
[Result "1-0"]
[ECO "E63"]
[WhiteElo "2357"]
[BlackElo "2273"]
[Annotator "RC"]
[PlyCount "75"]
[EventDate "2024.07.29"]
[EventType "swiss"]
[EventCountry "ESP"]
[SourceTitle "playchess.com"]
[Source "ChessBase"]
[SourceQuality "1"]
[TimeControl "5400+30"]

1. Nf3 {[%emt 0:01:21]} Nf6 {[%emt 0:00:39]} 2. c4 {[%emt 0:00:27]} g6 {[%emt 0:00:07]} 3. d4 {[%emt 0:00:56]} Bg7 {[%emt 0:00:07]} 4. g3 {[%emt 0:00:08]} O-O {[%emt 0:00:06]} 5. Bg2 {[%emt 0:00:06]} d6 {[%emt 0:00:07]} 6. Nc3 {[%emt 0:00:38]} Nc6 {[%emt 0:02:30]} 7. d5 {[%emt 0:00:59]} Na5 {[%emt 0:00:05]} 8. b3 {[%emt 0:00:04]} c5 {[%emt 0:00:05]} 9. Bb2 {[%emt 0:00:07]} a6 {[%emt 0:00:10]} 10. O-O {[%emt 0:01:36]} Rb8 {[%emt 0:00:06]} 11. Nd2 {[%emt 0:01:34]} b5 {[%emt 0:00:16]} 12. Qc1 {[%emt 0:00:20]} e5 {[%emt 0:00:23]} 13. dxe6 {[%emt 0:05:17]} Bxe6 {[%emt 0:00:35]} 14. cxb5 {[%emt 0:00:07]} axb5 {[%emt 0:00:04]} 15. Nce4 {[%emt 0:00:08]} Ne8 {[%emt 0:08:10]} 16. Bxg7 {[%emt 0:01:23]} Nxg7 {[%emt 0:03:05]} 17. Nf3 {[%emt 0:22:44]} Bd5 {[%emt 0:16:04]} 18. Nfg5 {[%emt 0:01:14]} f5 {[%emt 0:19:02]} 19. Nf6+ {[%emt 0:03:31]} Qxf6 {[%emt 0:00:04]} 20. Bxd5+ {[%emt 0:00:06]} Kh8 {[%emt 0:48:45]} 21. Rd1 {[%emt 0:11:47]} Rbc8 {[%emt 0:00:00]} 22. Nh3 {[%emt 0:16:32]} Ne8 {[%emt 0:00:00]} 23. Qh6 {[%emt 0:05:15]} Qg7 {[%emt 0:00:00]} 24. Qd2 {[%emt 0:01:00]} Nc6 {[%emt 0:00:00]} 25. Nf4 {[%emt 0:04:17]} Nd8 {[%emt 0:02:30]} 26. a4 {[%emt 0:01:09]} bxa4 {[%emt 0:00:00]} 27. bxa4 {[%emt 0:00:38]} Nf6 {[%emt 0:00:00]} 28. h4 {[%emt 0:03:41]} h6 {[%emt 0:00:00]} 29. Kg2 {[%emt 0:01:18]} c4 {[%emt 0:00:00]} 30. Rac1 {[%emt 0:02:36]} c3 {[%emt 0:00:00]} 31. Rxc3 {[%emt 0:01:15]} Ne4 {[%emt 0:00:00]} 32. Bxe4 {[%emt 0:00:01]} Qxc3 {[%emt 0:00:00]} 33. Nxg6+ {[%emt 0:00:23]} Kg7 {[%emt 0:00:00]} 34. Qxc3+ {[%emt 0:01:02]} Rxc3 {[%emt 0:00:00]} 35. Nxf8 {[%emt 0:00:05]} fxe4 {[%emt 0:00:00]} 36. Rxd6 {[%emt 0:01:20]} Nf7 {[%emt 0:00:00]} 37. Ne6+ {[%emt 0:00:08]} Kg8 {[%emt 0:00:00]} 38. Rd4 {[%emt 0:02:01]} 1-0

[Event "48th Ciutat de Badalona Open 2024"]
[Site "Badalona"]
[Date "2024.08.08"]
[Round "7.3"]
[White "Chavez Suarez, Carlos Alberto"]
[Black "Barath Kalyan M"]
[Result "1-0"]
[ECO "C41"]
[WhiteElo "2279"]
[BlackElo "2174"]
[Annotator "RC"]
[PlyCount "51"]
[EventDate "2024.07.29"]
[EventType "swiss"]
[EventCountry "ESP"]
[SourceTitle "playchess.com"]
[Source "ChessBase"]
[SourceQuality "1"]
[TimeControl "5400+30"]

1. e4 {[%emt 0:00:08]} d6 {[%emt 0:00:45]} 2. d4 {[%emt 0:00:06]} Nf6 {[%emt 0:00:24]} 3. Nc3 {[%emt 0:00:06]} e5 {[%emt 0:00:07]} 4. Nf3 {[%emt 0:00:06]} Nbd7 {[%emt 0:00:24]} 5. Bc4 {[%emt 0:00:08]} Be7 {[%emt 0:00:12]} 6. O-O {[%emt 0:00:25]} O-O {[%emt 0:01:03]} 7. a4 {[%emt 0:00:09]} c6 {[%emt 0:00:40]} 8. Ba2 {[%emt 0:00:38]} h6 {[%emt 0:00:12]} 9. dxe5 {[%emt 0:00:43]} dxe5 {[%emt 0:00:44]} 10. Qe2 {[%emt 0:00:44]} Qc7 {[%emt 0:03:51]} 11. Nh4 {[%emt 0:00:48]} Nc5 {[%emt 0:03:14]} 12. Ng6 {[%emt 0:08:29]} Re8 {[%emt 0:06:53]} 13. f4 {[%emt 0:03:50]} Bg4 {[%emt 0:03:22]} 14. Qe1 {[%emt 0:03:11]} exf4 {[%emt 0:11:59]} 15. Bxf4 {[%emt 0:00:25]} Qb6 {[%emt 0:13:36]} 16. Be3 {[%emt 0:08:29]} Bd6 {[%emt 0:08:16]} 17. Rxf6 {[%emt 0:13:12]} gxf6 {[%emt 0:01:53]} 18. Qh4 {[%emt 0:00:04]} Be6 {[%emt 0:23:41]} 19. Qxh6 {[%emt 0:00:22]} fxg6 {[%emt 0:00:36]} 20. Qxg6+ {[%emt 0:00:04]} Kh8 {[%emt 0:01:43]} 21. Qxf6+ {[%emt 0:00:05]} Kh7 {[%emt 0:00:23]} 22. Qh6+ {[%emt 0:00:04]} Kg8 {[%emt 0:00:33]} 23. Qg6+ {[%emt 0:00:04]} Kf8 {[%emt 0:00:57]} 24. Qf6+ {[%emt 0:00:05]} Kg8 {[%emt 0:00:13]} 25. Bd4 {[%emt 0:00:04]} Bxh2+ {[%emt 0:04:54]} 26. Kh1 {[%emt 0:00:05]} 1-0

[Event "48th Ciutat de Badalona Open 2024"]
[Site "Badalona"]
[Date "2024.08.08"]
[Round "7.4"]
[White "Vidarte Morales, Arturo"]
[Black "Blasco Coll, Andreu"]
[Result "1/2-1/2"]
[ECO "E92"]
[WhiteElo "2166"]
[BlackElo "2260"]
[Annotator "RC"]
[PlyCount "85"]
[EventDate "2024.07.29"]
[EventType "swiss"]
[EventCountry "ESP"]
[SourceTitle "playchess.com"]
[Source "ChessBase"]
[SourceQuality "1"]
[TimeControl "5400+30"]

1. Nf3 {[%emt 0:00:04]} Nf6 {[%emt 0:12:37]} 2. c4 {[%emt 0:00:12]} g6 {[%emt 0:00:15]} 3. Nc3 {[%emt 0:00:05]} Bg7 {[%emt 0:00:14]} 4. e4 {[%emt 0:00:04]} d6 {[%emt 0:00:19]} 5. d4 {[%emt 0:00:05]} O-O {[%emt 0:00:16]} 6. h3 {[%emt 0:00:06]} e5 {[%emt 0:00:44]} 7. d5 {[%emt 0:00:30]} a5 {[%emt 0:01:27]} 8. Bg5 {[%emt 0:00:11]} Na6 {[%emt 0:00:38]} 9. Be2 {[%emt 0:00:39]} Nc5 {[%emt 0:01:34]} 10. Nd2 {[%emt 0:00:44]} h6 {[%emt 0:00:43]} 11. Bh4 {[%emt 0:02:21]} Bd7 {[%emt 0:04:05]} 12. g4 {[%emt 0:00:44]} Qe8 {[%emt 0:01:37]} 13. f3 {[%emt 0:01:45]} Nh7 {[%emt 0:01:44]} 14. Qc2 {[%emt 0:01:57]} f5 {[%emt 0:08:26]} 15. O-O-O {[%emt 0:03:40]} Bf6 {[%emt 0:07:47]} 16. Bxf6 {[%emt 0:01:05]} Nxf6 {[%emt 0:03:06]} 17. exf5 {[%emt 0:04:57]} gxf5 {[%emt 0:00:16]} 18. Rdg1 {[%emt 0:01:01]} Kh8 {[%emt 0:03:53]} 19. Nb3 {[%emt 0:04:40]} Nxb3+ {[%emt 0:08:57]} 20. axb3 {[%emt 0:01:00]} Nh7 {[%emt 0:10:04]} 21. Qd2 {[%emt 0:02:24]} Qg6 {[%emt 0:02:55]} 22. gxf5 {[%emt 0:08:30]} Qxf5 {[%emt 0:00:42]} 23. Qxh6 {[%emt 0:00:16]} Qf4+ {[%emt 0:00:28]} 24. Qxf4 {[%emt 0:00:09]} Rxf4 {[%emt 0:00:04]} 25. Kd2 {[%emt 0:00:40]} Rh4 {[%emt 0:01:18]} 26. Ke3 {[%emt 0:00:50]} Rg8 {[%emt 0:01:50]} 27. Ne4 {[%emt 0:01:17]} b6 {[%emt 0:02:06]} 28. Rxg8+ {[%emt 0:07:39]} Kxg8 {[%emt 0:00:05]} 29. b4 {[%emt 0:01:39]} Bf5 {[%emt 0:06:37]} 30. bxa5 {[%emt 0:03:18]} bxa5 {[%emt 0:00:17]} 31. Nf2 {[%emt 0:03:26]} a4 {[%emt 0:04:40]} 32. Ra1 {[%emt 0:06:50]} Nf6 {[%emt 0:03:14]} 33. Ra3 {[%emt 0:06:22]} Bc2 {[%emt 0:01:22]} 34. Rc3 {[%emt 0:04:41]} Bb3 {[%emt 0:00:24]} 35. Bd3 {[%emt 0:00:45]} Kf7 {[%emt 0:00:57]} 36. Rc1 {[%emt 0:05:35]} Kf8 {[%emt 0:00:52]} 37. Bf1 {[%emt 0:03:12]} Nh5 {[%emt 0:04:58]} 38. Ne4 {[%emt 0:04:56]} Nf4 {[%emt 0:00:16]} 39. Nd2 {[%emt 0:01:41]} Nxh3 {[%emt 0:00:58]} 40. Nxb3 {[%emt 0:05:08]} axb3 {[%emt 0:00:05]} 41. Rc3 {[%emt 0:01:54]} Nf4 {[%emt 0:00:41]} 42. Rxb3 {[%emt 0:00:25]} Ke7 {[%emt 0:01:07]} 43. Rb8 {[%emt 0:04:19]} 1/2-1/2

[Event "48th Ciutat de Badalona Open 2024"]
[Site "Badalona"]
[Date "2024.08.08"]
[Round "7.5"]
[White "Vivaan Vishal Shah"]
[Black "Pimpalkhare Vedant"]
[Result "1/2-1/2"]
[ECO "C01"]
[WhiteElo "2186"]
[BlackElo "2191"]
[Annotator "RC"]
[PlyCount "75"]
[EventDate "2024.07.29"]
[EventType "swiss"]
[EventCountry "ESP"]
[SourceTitle "playchess.com"]
[Source "ChessBase"]
[SourceQuality "1"]
[TimeControl "5400+30"]

1. e4 {[%emt 0:06:30]} e6 {[%emt 0:00:08]} 2. d4 {[%emt 0:01:35]} d5 {[%emt 0:00:07]} 3. Nc3 {[%emt 0:00:04]} h6 {[%emt 0:00:06]} 4. Nf3 {[%emt 0:02:59]} Nf6 {[%emt 0:01:26]} 5. Bd3 {[%emt 0:02:42]} Bb4 {[%emt 0:03:38]} 6. exd5 {[%emt 0:08:54]} exd5 {[%emt 0:02:43]} 7. O-O {[%emt 0:00:42]} O-O {[%emt 0:00:10]} 8. Ne2 {[%emt 0:07:13]} Bd6 {[%emt 0:01:28]} 9. Ng3 {[%emt 0:01:54]} Re8 {[%emt 0:01:24]} 10. c3 {[%emt 0:00:35]} Bg4 {[%emt 0:03:44]} 11. h3 {[%emt 0:00:49]} Be6 {[%emt 0:03:18]} 12. Ne5 {[%emt 0:07:16]} c5 {[%emt 0:02:08]} 13. Re1 {[%emt 0:02:17]} Nc6 {[%emt 1:16:40]} 14. Nxc6 {[%emt 0:03:36]} bxc6 {[%emt 0:00:00]} 15. dxc5 {[%emt 0:00:36]} Bxc5 {[%emt 0:00:00]} 16. Bf4 {[%emt 0:00:45]} Qb6 {[%emt 0:00:00]} 17. Qd2 {[%emt 0:02:29]} Bf8 {[%emt 0:00:00]} 18. Re2 {[%emt 0:08:34]} Rad8 {[%emt 0:00:00]} 19. Rae1 {[%emt 0:07:26]} c5 {[%emt 0:00:00]} 20. Qc1 {[%emt 0:14:43]} Rc8 {[%emt 0:00:00]} 21. Be5 {[%emt 0:04:29]} Nd7 {[%emt 0:00:00]} 22. Nh5 {[%emt 0:00:24]} Nxe5 {[%emt 0:00:00]} 23. Rxe5 {[%emt 0:00:24]} Qd6 {[%emt 0:00:00]} 24. Nf4 {[%emt 0:06:20]} Rcd8 {[%emt 0:00:00]} 25. Bf5 {[%emt 0:05:24]} Bd7 {[%emt 0:00:00]} 26. Rxd5 {[%emt 0:00:12]} Rxe1+ {[%emt 0:00:00]} 27. Qxe1 {[%emt 0:00:14]} Qxf4 {[%emt 0:00:00]} 28. Bxd7 {[%emt 0:00:34]} Qc4 {[%emt 0:00:00]} 29. Rd2 {[%emt 0:03:31]} Qxa2 {[%emt 0:00:00]} 30. Be6 {[%emt 0:00:21]} Qa5 {[%emt 0:00:00]} 31. Bd5 {[%emt 0:00:07]} Qc7 {[%emt 0:00:00]} 32. c4 {[%emt 0:00:35]} g6 {[%emt 0:00:00]} 33. Rd3 {[%emt 0:01:21]} Rd7 {[%emt 0:02:30]} 34. Rg3 {[%emt 0:01:09]} Kh7 {[%emt 0:01:34]} 35. Qc3 {[%emt 0:00:32]} Bg7 {[%emt 0:00:31]} 36. Qc2 {[%emt 0:00:26]} Bd4 {[%emt 0:01:12]} 37. Rf3 {[%emt 0:00:25]} Re7 {[%emt 0:00:18]} 38. g3 {[%emt 0:01:23]} 1/2-1/2

[Event "48th Ciutat de Badalona Open 2024"]
[Site "Badalona"]
[Date "2024.08.08"]
[Round "7.6"]
[White "Diaz Perez, Michel Alejandro"]
[Black "Utsab Chatterjee"]
[Result "1-0"]
[ECO "B92"]
[WhiteElo "2487"]
[BlackElo "2289"]
[Annotator "RC"]
[PlyCount "67"]
[EventDate "2024.07.29"]
[EventType "swiss"]
[EventCountry "ESP"]
[SourceTitle "playchess.com"]
[Source "ChessBase"]
[SourceQuality "1"]
[TimeControl "5400+30"]

1. e4 {[%emt 0:00:29]} c5 {[%emt 0:00:19]} 2. Nf3 {[%emt 0:00:03]} d6 {[%emt 0:00:12]} 3. d4 {[%emt 0:00:02]} cxd4 {[%emt 0:00:07]} 4. Nxd4 {[%emt 0:00:02]} Nf6 {[%emt 0:00:13]} 5. Nc3 {[%emt 0:00:03]} a6 {[%emt 0:00:08]} 6. Be2 {[%emt 0:00:02]} e5 {[%emt 0:00:08]} 7. Nb3 {[%emt 0:00:02]} Be7 {[%emt 0:00:09]} 8. Be3 {[%emt 0:00:04]} Be6 {[%emt 0:00:05]} 9. Nd5 {[%emt 0:00:07]} Nbd7 {[%emt 0:00:10]} 10. Qd3 {[%emt 0:00:03]} Bxd5 {[%emt 0:01:20]} 11. exd5 {[%emt 0:00:02]} O-O {[%emt 0:00:50]} 12. a4 {[%emt 0:00:34]} Rc8 {[%emt 0:00:37]} 13. c4 {[%emt 0:00:57]} a5 {[%emt 0:04:12]} 14. Bd2 {[%emt 0:00:14]} b6 {[%emt 0:00:06]} 15. g4 {[%emt 0:00:14]} e4 {[%emt 0:12:34]} 16. Qg3 {[%emt 0:00:11]} Ne5 {[%emt 0:00:07]} 17. g5 {[%emt 0:00:13]} Nfd7 {[%emt 0:00:22]} 18. Nd4 {[%emt 0:00:29]} Nc5 {[%emt 0:00:42]} 19. Kf1 {[%emt 0:01:27]} Re8 {[%emt 0:13:56]} 20. Be3 {[%emt 0:05:30]} Bf8 {[%emt 0:01:03]} 21. h4 {[%emt 0:01:18]} g6 {[%emt 0:02:22]} 22. h5 {[%emt 0:03:49]} Bg7 {[%emt 0:00:06]} 23. hxg6 {[%emt 0:00:38]} hxg6 {[%emt 0:00:01]} 24. Rh4 {[%emt 0:00:52]} Qd7 {[%emt 0:00:51]} 25. b3 {[%emt 0:04:30]} Rf8 {[%emt 0:01:39]} 26. Kg2 {[%emt 0:10:42]} f5 {[%emt 0:00:22]} 27. gxf6 {[%emt 0:00:14]} Rxf6 {[%emt 0:00:10]} 28. Bg4 {[%emt 0:01:49]} Nxg4 {[%emt 0:02:40]} 29. Rxg4 {[%emt 0:00:02]} Qf7 {[%emt 0:02:50]} 30. Rh1 {[%emt 0:03:13]} Rf8 {[%emt 0:00:05]} 31. Qh4 {[%emt 0:04:17]} Qe8 {[%emt 0:00:07]} 32. Qh7+ {[%emt 0:05:07]} Kf7 {[%emt 0:00:01]} 33. Bh6 {[%emt 0:00:07]} Rg8 {[%emt 0:00:02]} 34. Nf5 {[%emt 1:00:04]} 1-0